[Event "NOR-ch Various 2019"]
[Site "Larvik"]
[Date "2019.07.12"]
[Round "8.37"]
[White "Machlik, Monika"]
[Black "Skotheim, Andreas"]
[Result "1/2-1/2"]
[ECO "D31"]
[WhiteElo "2083"]
[BlackElo "2138"]
[Annotator "NA"]
[PlyCount "196"]
[EventDate "2019.07.06"]
[EventType "swiss"]
[EventCountry "NOR"]
[SourceTitle "playchess.com"]
[Source "ChessBase"]
[SourceQuality "1"]
[TimeControl "40/5400+30:1800+30"]

1. d4 {[%emt 0:00:00]} d5 {[%emt 0:00:00]} 2. c4 {[%emt 0:00:00]} e6 {[%emt 0:00:00]} 3. Nc3 {[%emt 0:04:43]} Bb4 {[%emt 0:00:07]} 4. cxd5 {[%emt 0:02:37]} exd5 {[%emt 0:00:44]} 5. Nf3 {[%emt 0:02:22]} c6 {[%emt 0:09:07]} 6. Qc2 {[%emt 0:03:11]} Ne7 {[%emt 0:00:51]} 7. Bg5 {[%emt 0:07:17]} h6 {[%emt 0:04:27]} 8. Bf4 {[%emt 0:09:45]} Bd6 {[%emt 0:10:29]} 9. Bxd6 {[%emt 0:01:57]} Qxd6 {[%emt 0:05:07]} 10. e3 {[%emt 0:00:54]} Bf5 {[%emt 0:01:39]} 11. Bd3 {[%emt 0:02:52]} Bxd3 {[%emt 0:01:04]} 12. Qxd3 {[%emt 0:00:03]} Nd7 {[%emt 0:04:54]} 13. O-O {[%emt 0:00:49]} O-O {[%emt 0:05:00]} 14. Rab1 {[%emt 0:01:16]} Ng6 {[%emt 0:06:07]} 15. Rfc1 {[%emt 0:06:21]} Rae8 {[%emt 0:06:32]} 16. b4 {[%emt 0:01:36]} a6 {[%emt 0:01:59]} 17. a4 {[%emt 0:12:53]} f5 {[%emt 0:05:26]} 18. Re1 {[%emt 0:04:05]} Nf6 {[%emt 0:03:38]} 19. h3 {[%emt 0:18:17]} Ne4 {[%emt 0:01:29]} 20. Ne2 {[%emt 0:06:09]} f4 {[%emt 0:02:08]} 21. exf4 {[%emt 0:02:38]} Nxf4 {[%emt 0:00:14]} 22. Nxf4 {[%emt 0:00:04]} Rxf4 {[%emt 0:01:39]} 23. Re2 {[%emt 0:00:37]} Ref8 {[%emt 0:00:47]} 24. Rb3 {[%emt 0:03:03]} R8f6 {[%emt 0:10:56]} 25. Qc2 {[%emt 0:04:26]} Qf8 {[%emt 0:04:06]} 26. b5 {[%emt 0:00:37]} axb5 {[%emt 0:01:04]} 27. axb5 {[%emt 0:00:03]} cxb5 {[%emt 0:01:49]} 28. Rbe3 {[%emt 0:00:48]} Qd8 {[%emt 0:04:19]} 29. Qb3 {[%emt 0:00:00]} Kh7 {[%emt 0:00:00]} 30. Qxb5 {[%emt 0:00:00]} Qc7 31. Qb2 {[%emt 0:00:00]} Rb6 32. Rb3 {[%emt 0:00:00]} Rff6 {[%emt 0:00:00]} 33. Ree3 {[%emt 0:00:00]} Rbc6 {[%emt 0:00:00]} 34. Rxb7 {[%emt 0:00:00]} Rc1+ {[%emt 0:00:00]} 35. Re1 {[%emt 0:00:00]} Rxe1+ {[%emt 0:00:00]} 36. Nxe1 {[%emt 0:00:00]} Qf4 {[%emt 0:00:00]} 37. Nd3 {[%emt 0:00:00]} Qh4 {[%emt 0:00:00]} 38. Ra7 {[%emt 0:00:39]} Rg6 {[%emt 0:00:00]} 39. Ne5 Rf6 {[%emt 0:08:12]} 40. Nd3 {[%emt 0:01:00]} Rg6 41. Ne5 Rf6 42. Rf7 {[%emt 0:31:00]} Rxf7 {[%emt 0:23:27]} 43. Nxf7 {[%emt 0:00:01]} Ng5 {[%emt 0:01:16]} 44. Nxg5+ {[%emt 0:04:54]} Qxg5 {[%emt 0:00:54]} 45. Qc2+ {[%emt 0:01:13]} Kh8 {[%emt 0:01:04]} 46. Qc8+ {[%emt 0:01:23]} Kh7 {[%emt 0:00:04]} 47. Qf8 {[%emt 0:00:49]} Qc1+ {[%emt 0:02:33]} 48. Kh2 {[%emt 0:00:01]} Qd2 {[%emt 0:00:20]} 49. Qf5+ {[%emt 0:01:00]} Kh8 {[%emt 0:00:06]} 50. Qf8+ {[%emt 0:00:58]} Kh7 {[%emt 0:00:06]} 51. Qf5+ {[%emt 0:00:26]} Kh8 {[%emt 0:00:05]} 52. Qe5 {[%emt 0:00:49]} Qxf2 {[%emt 0:02:47]} 53. Qxd5 {[%emt 0:00:06]} Qf4+ {[%emt 0:00:50]} 54. Kg1 {[%emt 0:00:07]} Kh7 {[%emt 0:03:04]} 55. Qd7 {[%emt 0:02:22]} Qe3+ {[%emt 0:01:31]} 56. Kf1 {[%emt 0:00:57]} Qf4+ {[%emt 0:00:33]} 57. Ke2 {[%emt 0:00:08]} Qe4+ {[%emt 0:00:06]} 58. Kf2 {[%emt 0:00:24]} Qf4+ {[%emt 0:00:05]} 59. Kg1 {[%emt 0:00:08]} Qe3+ {[%emt 0:00:22]} 60. Kf1 {[%emt 0:00:47]} Qf4+ {[%emt 0:00:21]} 61. Ke2 {[%emt 0:00:12]} Qe4+ {[%emt 0:00:09]} 62. Kd2 {[%emt 0:00:44]} Qxg2+ {[%emt 0:00:35]} 63. Kc3 {[%emt 0:00:02]} Qf3+ {[%emt 0:01:21]} 64. Kc4 {[%emt 0:00:10]} Qe2+ {[%emt 0:00:35]} 65. Kc5 {[%emt 0:00:17]} Qc2+ {[%emt 0:00:36]} 66. Kd6 {[%emt 0:00:31]} Qg6+ {[%emt 0:01:38]} 67. Qe6 {[%emt 0:00:33]} Qg3+ {[%emt 0:00:15]} 68. Kd7 {[%emt 0:00:15]} Qf4 {[%emt 0:02:01]} 69. d5 {[%emt 0:00:17]} Qa4+ {[%emt 0:00:21]} 70. Ke7 {[%emt 0:00:48]} Qa7+ {[%emt 0:00:05]} 71. Qd7 {[%emt 0:00:46]} Qe3+ {[%emt 0:00:09]} 72. Kf8 {[%emt 0:01:30]} Qf4+ {[%emt 0:00:34]} 73. Ke8 {[%emt 0:00:28]} Qe5+ {[%emt 0:00:59]} 74. Qe6 {[%emt 0:00:18]} Qb8+ {[%emt 0:00:23]} 75. Kd7 {[%emt 0:00:23]} Qb7+ {[%emt 0:00:18]} 76. Kd6 {[%emt 0:00:20]} Qb6+ {[%emt 0:00:36]} 77. Ke7 {[%emt 0:00:17]} Qc7+ {[%emt 0:01:12]} 78. Qd7 {[%emt 0:00:24]} Qe5+ {[%emt 0:00:07]} 79. Kf8 {[%emt 0:01:21]} Qf4+ {[%emt 0:01:02]} 80. Ke8 {[%emt 0:00:31]} Qe5+ {[%emt 0:00:27]} 81. Qe6 {[%emt 0:00:44]} Qb8+ {[%emt 0:00:16]} 82. Ke7 {[%emt 0:00:06]} Qc7+ {[%emt 0:00:22]} 83. Ke8 {[%emt 0:00:20]} Qb8+ {[%emt 0:00:25]} 84. Kd7 {[%emt 0:00:44]} Qb7+ {[%emt 0:00:10]} 85. Kd6 {[%emt 0:00:10]} Qb6+ {[%emt 0:00:12]} 86. Ke7 {[%emt 0:00:21]} Qc7+ {[%emt 0:00:13]} 87. Ke8 {[%emt 0:01:14]} Qb8+ {[%emt 0:00:12]} 88. Ke7 {[%emt 0:00:38]} Qc7+ {[%emt 0:00:08]} 89. Qd7 {[%emt 0:00:05]} Qe5+ {[%emt 0:00:12]} 90. Kf8 {[%emt 0:00:38]} Qf6+ {[%emt 0:01:01]} 91. Ke8 {[%emt 0:00:12]} Qe5+ {[%emt 0:00:21]} 92. Kd8 {[%emt 0:00:36]} Qb8+ {[%emt 0:00:15]} 93. Ke7 {[%emt 0:00:07]} Qe5+ {[%emt 0:00:11]} 94. Qe6 {[%emt 0:00:14]} Qc7+ {[%emt 0:00:34]} 95. Kf8 {[%emt 0:00:59]} Qb8+ {[%emt 0:01:39]} 96. Qe8 {[%emt 0:00:56]} Qd6+ {[%emt 0:01:30]} 97. Qe7 Qb8+ {[%emt 0:00:02]} 98. Qe8 {[%emt 0:00:06]} Qd6+ {[%emt 0:00:02]} 1/2-1/2

[Event "NOR-ch Various 2019"]
[Site "Larvik"]
[Date "2019.07.12"]
[Round "8.38"]
[White "Laverton, Christian"]
[Black "Skagseth, Havard M"]
[Result "1-0"]
[ECO "E05"]
[WhiteElo "2115"]
[BlackElo "2002"]
[Annotator "NA"]
[PlyCount "53"]
[EventDate "2019.07.06"]
[EventType "swiss"]
[EventCountry "NOR"]
[SourceTitle "playchess.com"]
[Source "ChessBase"]
[SourceQuality "1"]
[TimeControl "40/5400+30:1800+30"]

1. d4 {[%emt 0:01:03]} Nf6 {[%emt 0:00:00]} 2. Nf3 {[%emt 0:00:33]} d5 {[%emt 0:00:00]} 3. g3 {[%emt 0:01:27]} e6 {[%emt 0:00:43]} 4. Bg2 {[%emt 0:00:36]} Be7 {[%emt 0:01:10]} 5. c4 {[%emt 0:00:48]} O-O {[%emt 0:00:05]} 6. O-O {[%emt 0:00:51]} dxc4 {[%emt 0:00:23]} 7. Qc2 {[%emt 0:01:00]} a6 {[%emt 0:00:09]} 8. Qxc4 {[%emt 0:00:29]} b5 {[%emt 0:00:07]} 9. Qc2 {[%emt 0:00:08]} Bb7 {[%emt 0:00:05]} 10. Bg5 {[%emt 0:01:59]} Nbd7 {[%emt 0:03:18]} 11. Nbd2 {[%emt 0:04:45]} Rc8 {[%emt 0:05:27]} 12. Bxf6 {[%emt 0:03:43]} Nxf6 {[%emt 0:03:01]} 13. Nb3 {[%emt 0:01:09]} Be4 {[%emt 0:00:25]} 14. Qc1 {[%emt 0:01:52]} Nd7 {[%emt 0:02:10]} 15. Rd1 {[%emt 0:04:48]} c5 {[%emt 0:13:12]} 16. dxc5 {[%emt 0:02:20]} Qc7 {[%emt 0:00:17]} 17. Qe3 {[%emt 0:17:52]} Bc2 {[%emt 0:09:46]} 18. Rdc1 {[%emt 0:04:56]} Bxb3 {[%emt 0:00:30]} 19. axb3 {[%emt 0:02:38]} Bxc5 {[%emt 0:00:11]} 20. Qd2 {[%emt 0:02:53]} Qb6 {[%emt 0:08:17]} 21. e3 {[%emt 0:02:21]} Rfd8 {[%emt 0:00:16]} 22. b4 {[%emt 0:02:34]} Bf8 {[%emt 0:00:24]} 23. Rxc8 {[%emt 0:04:26]} Rxc8 {[%emt 0:00:05]} 24. Qxd7 {[%emt 0:01:01]} Rd8 {[%emt 0:04:54]} 25. Rxa6 {[%emt 0:00:39]} Qb8 {[%emt 0:00:24]} 26. Qa7 {[%emt 0:02:13]} Qc8 {[%emt 0:03:04]} 27. Ra1 {[%emt 0:06:27]} 1-0

[Event "NOR-ch Various 2019"]
[Site "Larvik"]
[Date "2019.07.12"]
[Round "8.39"]
[White "Esbensen, Kai Inge"]
[Black "Machlik, Edit"]
[Result "1/2-1/2"]
[ECO "E32"]
[WhiteElo "1991"]
[BlackElo "2075"]
[Annotator "NA"]
[PlyCount "32"]
[EventDate "2019.07.06"]
[EventType "swiss"]
[EventCountry "NOR"]
[SourceTitle "playchess.com"]
[Source "ChessBase"]
[SourceQuality "1"]
[TimeControl "40/5400+30:1800+30"]

1. d4 {[%emt 0:00:00]} Nf6 {[%emt 0:00:00]} 2. c4 {[%emt 0:00:00]} e6 {[%emt 0:00:00]} 3. Nc3 {[%emt 0:00:04]} Bb4 {[%emt 0:00:00]} 4. Qc2 {[%emt 0:00:08]} O-O {[%emt 0:04:48]} 5. a3 {[%emt 0:00:10]} Bxc3+ {[%emt 0:00:16]} 6. Qxc3 {[%emt 0:00:07]} b6 {[%emt 0:17:42]} 7. f3 {[%emt 0:10:49]} d5 {[%emt 0:15:31]} 8. Bg5 {[%emt 0:07:16]} Bb7 {[%emt 0:13:35]} 9. e3 {[%emt 0:01:50]} Nbd7 {[%emt 0:00:42]} 10. cxd5 {[%emt 0:05:23]} Nxd5 {[%emt 0:00:15]} 11. Bxd8 {[%emt 0:00:17]} Nxc3 {[%emt 0:00:04]} 12. Bh4 {[%emt 0:00:28]} Nd5 {[%emt 0:00:47]} 13. Bf2 {[%emt 0:01:01]} c5 {[%emt 0:05:23]} 14. Bb5 {[%emt 0:04:39]} N5f6 {[%emt 0:04:18]} 15. Ne2 {[%emt 0:07:09]} Rac8 {[%emt 0:02:52]} 16. O-O {[%emt 0:03:48]} Rfd8 {[%emt 0:03:43]} 1/2-1/2

[Event "NOR-ch Various 2019"]
[Site "Larvik"]
[Date "2019.07.12"]
[Round "8.40"]
[White "Mansoor, Afras"]
[Black "Sorgjerd, Jan"]
[Result "1-0"]
[ECO "D36"]
[WhiteElo "1991"]
[BlackElo "2033"]
[Annotator "NA"]
[PlyCount "126"]
[EventDate "2019.07.06"]
[EventType "swiss"]
[EventCountry "NOR"]
[SourceTitle "playchess.com"]
[Source "ChessBase"]
[SourceQuality "1"]
[TimeControl "40/5400+30:1800+30"]

1. d4 {[%emt 0:06:47]} Nf6 {[%emt 0:00:00]} 2. Bg5 {[%emt 0:00:23]} d5 {[%emt 0:00:01]} 3. c4 {[%emt 0:00:18]} e6 {[%emt 0:00:58]} 4. Nc3 {[%emt 0:00:06]} Nbd7 {[%emt 0:04:24]} 5. cxd5 {[%emt 0:04:13]} exd5 {[%emt 0:00:08]} 6. e3 {[%emt 0:00:06]} Be7 {[%emt 0:00:44]} 7. Bd3 {[%emt 0:00:05]} O-O {[%emt 0:02:09]} 8. Nge2 {[%emt 0:05:50]} Re8 {[%emt 0:02:00]} 9. O-O {[%emt 0:00:30]} Nf8 {[%emt 0:01:57]} 10. Qc2 {[%emt 0:00:57]} c6 {[%emt 0:02:59]} 11. Rad1 {[%emt 0:00:22]} g6 {[%emt 0:00:38]} 12. f3 {[%emt 0:02:01]} Nh5 {[%emt 0:06:27]} 13. Bxe7 {[%emt 0:00:54]} Qxe7 {[%emt 0:00:11]} 14. e4 {[%emt 0:00:44]} Be6 {[%emt 0:02:10]} 15. e5 {[%emt 0:02:16]} Ng7 {[%emt 0:13:11]} 16. f4 {[%emt 0:19:06]} Nf5 {[%emt 0:11:44]} 17. Qd2 {[%emt 0:02:23]} h5 {[%emt 0:01:45]} 18. g3 {[%emt 0:13:16]} Qd7 {[%emt 0:06:36]} 19. Kg2 {[%emt 0:12:24]} Kg7 {[%emt 0:10:09]} 20. h3 {[%emt 0:02:40]} Nh6 {[%emt 0:08:27]} 21. Ng1 {[%emt 0:00:36]} Nh7 {[%emt 0:01:27]} 22. Qf2 {[%emt 0:02:26]} Rh8 {[%emt 0:03:50]} 23. Rd2 {[%emt 0:02:53]} Rag8 {[%emt 0:00:58]} 24. Nd1 {[%emt 0:02:37]} Kf8 {[%emt 0:01:23]} 25. Ne3 {[%emt 0:00:32]} Nf5 {[%emt 0:00:52]} 26. Bb1 {[%emt 0:05:20]} Ke8 {[%emt 0:00:26]} 27. Kh2 {[%emt 0:00:35]} Kd8 {[%emt 0:01:05]} 28. b4 {[%emt 0:00:10]} Nf8 {[%emt 0:03:32]} 29. a4 {[%emt 0:00:43]} Nxe3 {[%emt 0:02:28]} 30. Qxe3 {[%emt 0:00:04]} Bf5 {[%emt 0:00:07]} 31. Bd3 {[%emt 0:00:26]} Ne6 {[%emt 0:03:46]} 32. Rc1 {[%emt 0:00:52]} Bxd3 {[%emt 0:01:06]} 33. Qxd3 {[%emt 0:00:21]} h4 {[%emt 0:00:21]} 34. g4 {[%emt 0:02:22]} Nxf4 {[%emt 0:00:23]} 35. Qa3 {[%emt 0:03:59]} Qe7 {[%emt 0:00:55]} 36. Qc3 {[%emt 0:02:50]} Kd7 {[%emt 0:00:51]} 37. b5 {[%emt 0:04:22]} Rc8 {[%emt 0:00:14]} 38. Rdc2 {[%emt 0:00:49]} Ne6 {[%emt 0:02:02]} 39. Nf3 {[%emt 0:00:12]} g5 {[%emt 0:02:09]} 40. Qa5 {[%emt 0:00:31]} Nxd4 {[%emt 0:04:19]} 41. bxc6+ {[%emt 0:03:58]} Nxc6 {[%emt 0:03:13]} 42. Qxd5+ {[%emt 0:01:08]} Ke8 {[%emt 0:03:17]} 43. Re1 {[%emt 0:13:06]} Rd8 {[%emt 0:01:39]} 44. Qe4 {[%emt 0:00:54]} Rh6 {[%emt 0:01:50]} 45. Rce2 {[%emt 0:06:04]} Re6 {[%emt 0:02:32]} 46. Rb1 {[%emt 0:03:42]} Rd7 {[%emt 0:00:51]} 47. Qh7 {[%emt 0:01:11]} Kd8 {[%emt 0:00:39]} 48. Qg8+ {[%emt 0:01:45]} Kc7 {[%emt 0:01:03]} 49. Qa8 {[%emt 0:01:45]} Nd8 {[%emt 0:06:36]} 50. Qxa7 {[%emt 0:02:03]} Rc6 {[%emt 0:00:38]} 51. Nd4 {[%emt 0:01:00]} Rxd4 {[%emt 0:02:54]} 52. Qxd4 {[%emt 0:00:04]} Ne6 {[%emt 0:00:22]} 53. Qa7 {[%emt 0:00:28]} Nd8 {[%emt 0:01:43]} 54. Qa5+ {[%emt 0:00:16]} Kb8 {[%emt 0:02:31]} 55. Rd2 {[%emt 0:00:28]} Rc7 {[%emt 0:02:09]} 56. Qb5 {[%emt 0:01:04]} Nc6 {[%emt 0:00:39]} 57. Re1 {[%emt 0:00:54]} Qa3 {[%emt 0:00:09]} 58. Rd3 {[%emt 0:00:30]} Qa2+ {[%emt 0:00:35]} 59. Kg1 {[%emt 0:00:12]} Re7 {[%emt 0:02:43]} 60. Rb1 {[%emt 0:00:44]} Qe6 {[%emt 0:03:05]} 61. a5 {[%emt 0:00:12]} Nxe5 {[%emt 0:01:40]} 62. Re3 {[%emt 0:00:57]} f6 {[%emt 0:00:40]} 63. a6 {[%emt 0:00:17]} Qd7 {[%emt 0:00:41]} 1-0

[Event "NOR-ch Various 2019"]
[Site "Larvik"]
[Date "2019.07.12"]
[Round "8.41"]
[White "Fossan, Andreas"]
[Black "Kjoita, Torgeir"]
[Result "1-0"]
[ECO "A57"]
[WhiteElo "2023"]
[BlackElo "2012"]
[Annotator "NA"]
[PlyCount "77"]
[EventDate "2019.07.06"]
[EventType "swiss"]
[EventCountry "NOR"]
[SourceTitle "playchess.com"]
[Source "ChessBase"]
[SourceQuality "1"]
[TimeControl "40/5400+30:1800+30"]

1. d4 {[%emt 0:00:00]} Nf6 {[%emt 0:00:00]} 2. c4 {[%emt 0:00:28]} c5 {[%emt 0:00:00]} 3. d5 {[%emt 0:00:04]} b5 {[%emt 0:00:00]} 4. Qc2 {[%emt 0:02:18]} g6 {[%emt 0:01:34]} 5. e4 {[%emt 0:00:27]} bxc4 {[%emt 0:01:25]} 6. Bxc4 {[%emt 0:00:11]} d6 {[%emt 0:00:31]} 7. Nf3 {[%emt 0:00:10]} Bg7 {[%emt 0:00:17]} 8. O-O {[%emt 0:01:08]} O-O {[%emt 0:00:20]} 9. h3 {[%emt 0:00:08]} a5 {[%emt 0:04:59]} 10. Re1 {[%emt 0:05:48]} Ba6 {[%emt 0:04:44]} 11. Na3 {[%emt 0:02:39]} Nbd7 {[%emt 0:07:30]} 12. Bg5 {[%emt 0:07:57]} Nh5 {[%emt 0:04:00]} 13. Rad1 {[%emt 0:04:46]} Ne5 {[%emt 0:01:20]} 14. Nxe5 {[%emt 0:08:26]} Bxe5 {[%emt 0:00:06]} 15. Bxa6 {[%emt 0:01:19]} Rxa6 {[%emt 0:01:01]} 16. Nc4 {[%emt 0:02:36]} Bd4 {[%emt 0:00:08]} 17. Be3 {[%emt 0:05:19]} Bg7 {[%emt 0:22:21]} 18. Qe2 {[%emt 0:17:12]} Ra7 {[%emt 0:06:35]} 19. e5 {[%emt 0:03:52]} f5 {[%emt 0:04:16]} 20. Bg5 {[%emt 0:06:28]} Qd7 {[%emt 0:17:31]} 21. exd6 {[%emt 0:08:10]} exd6 {[%emt 0:00:07]} 22. Qe6+ {[%emt 0:00:36]} Kh8 {[%emt 0:01:12]} 23. Nxd6 {[%emt 0:02:36]} Bxb2 {[%emt 0:01:28]} 24. Nc4 {[%emt 0:07:13]} Bd4 {[%emt 0:01:28]} 25. d6 {[%emt 0:01:32]} Qxe6 {[%emt 0:06:41]} 26. Rxe6 {[%emt 0:00:04]} Kg8 {[%emt 0:00:18]} 27. Re7 {[%emt 0:06:01]} Rf7 {[%emt 0:02:38]} 28. Rb1 {[%emt 0:02:16]} Nf6 {[%emt 0:04:35]} 29. Rb8+ {[%emt 0:01:10]} Kg7 {[%emt 0:00:06]} 30. Rxa7 {[%emt 0:02:00]} Rxa7 {[%emt 0:00:09]} 31. Bxf6+ {[%emt 0:00:30]} Bxf6 {[%emt 0:01:39]} 32. Nb6 {[%emt 0:00:31]} Kf7 {[%emt 0:00:49]} 33. d7 {[%emt 0:01:13]} Ra6 {[%emt 0:00:13]} 34. Nd5 {[%emt 0:00:24]} Bh4 {[%emt 0:03:03]} 35. d8=Q {[%emt 0:01:05]} Bxd8 {[%emt 0:00:06]} 36. Rxd8 {[%emt 0:00:07]} c4 {[%emt 0:00:50]} 37. Rc8 {[%emt 0:00:35]} Rd6 {[%emt 0:00:09]} 38. Ne3 {[%emt 0:00:34]} Rd2 {[%emt 0:00:29]} 39. a3 {[%emt 0:00:41]} 1-0

[Event "NOR-ch Various 2019"]
[Site "Larvik"]
[Date "2019.07.13"]
[Round "9.1"]
[White "Thrana, Svein Arne"]
[Black "Smeby, Ole"]
[Result "1/2-1/2"]
[ECO "B01"]
[WhiteElo "1800"]
[BlackElo "1887"]
[Annotator "NA"]
[PlyCount "54"]
[EventDate "2019.07.06"]
[EventType "swiss"]
[EventCountry "NOR"]
[SourceTitle "playchess.com"]
[Source "ChessBase"]
[SourceQuality "1"]
[TimeControl "40/5400+30:1800+30"]

1. e4 {[%emt 0:00:00]} d5 {[%emt 0:00:00]} 2. exd5 {[%emt 0:00:45]} Qxd5 {[%emt 0:00:00]} 3. Nc3 {[%emt 0:00:29]} Qa5 {[%emt 0:00:00]} 4. d4 {[%emt 0:00:11]} Nf6 {[%emt 0:00:00]} 5. Nf3 {[%emt 0:02:47]} c6 {[%emt 0:00:03]} 6. Bc4 {[%emt 0:02:50]} Bf5 {[%emt 0:01:21]} 7. O-O {[%emt 0:03:46]} e6 {[%emt 0:00:08]} 8. Bf4 {[%emt 0:02:30]} Bb4 {[%emt 0:04:50]} 9. Ne2 {[%emt 0:03:03]} O-O {[%emt 0:01:36]} 10. c3 {[%emt 0:00:58]} Be7 {[%emt 0:00:06]} 11. a4 {[%emt 0:04:58]} Nbd7 {[%emt 0:02:28]} 12. b4 {[%emt 0:02:05]} Qd8 {[%emt 0:00:07]} 13. a5 {[%emt 0:02:10]} Nd5 {[%emt 0:02:05]} 14. Bd3 {[%emt 0:13:19]} Bxd3 {[%emt 0:05:14]} 15. Qxd3 {[%emt 0:01:00]} Nxf4 {[%emt 0:00:15]} 16. Nxf4 {[%emt 0:00:01]} Bd6 {[%emt 0:02:53]} 17. Ne2 {[%emt 0:03:47]} Nf6 {[%emt 0:01:52]} 18. Ng3 {[%emt 0:01:04]} Nd5 {[%emt 0:08:40]} 19. Rae1 {[%emt 0:01:43]} Nf4 {[%emt 0:06:18]} 20. Qd2 {[%emt 0:05:11]} Ng6 {[%emt 0:00:32]} 21. Qg5 {[%emt 0:00:56]} Qxg5 {[%emt 0:14:37]} 22. Nxg5 {[%emt 0:00:02]} Nf4 {[%emt 0:00:13]} 23. N3e4 {[%emt 0:03:44]} Be7 {[%emt 0:02:26]} 24. Nf3 {[%emt 0:01:07]} Nd5 {[%emt 0:00:51]} 25. Rc1 {[%emt 0:02:14]} Rfd8 {[%emt 0:02:27]} 26. Ne5 {[%emt 0:00:24]} Nf4 {[%emt 0:09:09]} 27. Rc2 {[%emt 0:05:46]} f6 {[%emt 0:03:50]} 1/2-1/2

[Event "NOR-ch Various 2019"]
[Site "Larvik"]
[Date "2019.07.13"]
[Round "9.2"]
[White "Stake-Larsen, Gunnar"]
[Black "Hamre, Einar"]
[Result "1/2-1/2"]
[ECO "E44"]
[WhiteElo "1976"]
[BlackElo "1944"]
[Annotator "NA"]
[PlyCount "113"]
[EventDate "2019.07.06"]
[EventType "swiss"]
[EventCountry "NOR"]
[SourceTitle "playchess.com"]
[Source "ChessBase"]
[SourceQuality "1"]
[TimeControl "40/5400+30:1800+30"]

1. d4 {[%emt 0:00:00]} Nf6 {[%emt 0:00:24]} 2. c4 {[%emt 0:00:00]} e6 {[%emt 0:00:06]} 3. Nc3 {[%emt 0:00:24]} Bb4 {[%emt 0:03:05]} 4. e3 {[%emt 0:00:35]} O-O {[%emt 0:00:15]} 5. Nge2 {[%emt 0:03:33]} b6 {[%emt 0:09:35]} 6. a3 {[%emt 0:01:13]} Bxc3+ {[%emt 0:00:59]} 7. Nxc3 {[%emt 0:00:06]} d5 {[%emt 0:00:28]} 8. cxd5 {[%emt 0:04:36]} exd5 {[%emt 0:02:02]} 9. Bd3 {[%emt 0:04:10]} Bb7 {[%emt 0:03:55]} 10. O-O {[%emt 0:01:15]} c5 {[%emt 0:03:45]} 11. dxc5 {[%emt 0:07:26]} bxc5 {[%emt 0:00:44]} 12. Qa4 {[%emt 0:01:55]} d4 {[%emt 0:06:40]} 13. exd4 {[%emt 0:02:31]} cxd4 {[%emt 0:04:42]} 14. Ne2 {[%emt 0:00:57]} Qd5 {[%emt 0:02:20]} 15. f3 {[%emt 0:01:18]} Nc6 {[%emt 0:00:54]} 16. Qb5 {[%emt 0:04:53]} Ne5 {[%emt 0:01:53]} 17. Nf4 {[%emt 0:07:18]} Qxb5 {[%emt 0:01:03]} 18. Bxb5 {[%emt 0:00:03]} a6 {[%emt 0:00:51]} 19. Be2 {[%emt 0:02:34]} Rac8 {[%emt 0:07:26]} 20. Nd3 {[%emt 0:02:09]} Nc4 {[%emt 0:07:20]} 21. Bg5 {[%emt 0:13:40]} Nd5 {[%emt 0:09:35]} 22. Rfc1 {[%emt 0:01:58]} f6 {[%emt 0:07:49]} 23. Bh4 {[%emt 0:00:36]} Rfe8 {[%emt 0:01:36]} 24. Bf1 {[%emt 0:04:18]} Nde3 {[%emt 0:01:27]} 25. Be1 {[%emt 0:13:03]} Nxf1 {[%emt 0:04:04]} 26. Kxf1 {[%emt 0:00:05]} Ne3+ {[%emt 0:02:09]} 27. Kf2 {[%emt 0:00:35]} Nc2 {[%emt 0:02:23]} 28. Rab1 {[%emt 0:00:48]} Re3 {[%emt 0:00:36]} 29. Rd1 {[%emt 0:05:58]} a5 {[%emt 0:01:17]} 30. Bxa5 {[%emt 0:03:01]} Ba6 {[%emt 0:01:12]} 31. Nf4 {[%emt 0:01:06]} g5 {[%emt 0:00:29]} 32. Nd5 {[%emt 0:00:37]} Re2+ {[%emt 0:00:53]} 33. Kg1 {[%emt 0:00:34]} Kf7 {[%emt 0:06:42]} 34. Rd2 {[%emt 0:01:21]} Rc5 {[%emt 0:00:55]} 35. Rxe2 {[%emt 0:03:41]} Bxe2 {[%emt 0:00:30]} 36. Nb4 {[%emt 0:01:47]} Rxa5 {[%emt 0:04:41]} 37. Nxc2 {[%emt 0:00:15]} Bd3 {[%emt 0:00:41]} 38. b4 {[%emt 0:00:52]} Bxc2 {[%emt 0:00:44]} 39. Rb2 {[%emt 0:00:57]} d3 {[%emt 0:00:17]} 40. bxa5 {[%emt 0:01:54]} d2 {[%emt 0:01:01]} 41. Rb7+ {[%emt 0:31:28]} Kg6 {[%emt 0:29:12]} 42. Rd7 {[%emt 0:00:26]} d1=Q+ {[%emt 0:00:39]} 43. Rxd1 {[%emt 0:00:14]} Bxd1 {[%emt 0:00:04]} 44. Kf2 {[%emt 0:00:14]} Kf5 {[%emt 0:00:53]} 45. Ke1 {[%emt 0:00:19]} Ba4 {[%emt 0:00:10]} 46. Kd2 {[%emt 0:00:20]} Ke5 {[%emt 0:00:37]} 47. Kc3 {[%emt 0:00:13]} Kd5 {[%emt 0:00:20]} 48. Kb4 {[%emt 0:00:16]} Bd7 {[%emt 0:01:37]} 49. a6 {[%emt 0:04:18]} Kc6 {[%emt 0:00:21]} 50. a7 {[%emt 0:01:22]} Kb7 {[%emt 0:00:10]} 51. Kc5 {[%emt 0:01:29]} h5 {[%emt 0:01:00]} 52. Kd6 {[%emt 0:00:21]} Bc8 {[%emt 0:00:52]} 53. Ke7 {[%emt 0:00:00]} f5 {[%emt 0:00:00]} 54. Kf6 {[%emt 0:00:00]} g4 {[%emt 0:00:00]} 55. Kg5 {[%emt 0:00:00]} Kxa7 {[%emt 0:00:00]} 56. Kxh5 {[%emt 0:00:00]} Bb7 {[%emt 0:00:00]} 57. fxg4 {[%emt 0:00:00]} 1/2-1/2

[Event "NOR-ch Various 2019"]
[Site "Larvik"]
[Date "2019.07.13"]
[Round "9.3"]
[White "Kyrkjebo, Eirik"]
[Black "Tidemann-Andersen, Leif"]
[Result "1/2-1/2"]
[ECO "C41"]
[WhiteElo "1598"]
[BlackElo "1587"]
[Annotator "NA"]
[PlyCount "50"]
[EventDate "2019.07.06"]
[EventType "swiss"]
[EventCountry "NOR"]
[SourceTitle "playchess.com"]
[Source "ChessBase"]
[SourceQuality "1"]
[TimeControl "40/5400+30:1800+30"]

1. e4 {[%emt 0:00:00]} e5 {[%emt 0:00:03]} 2. Nf3 {[%emt 0:00:00]} d6 {[%emt 0:00:25]} 3. Nc3 {[%emt 0:01:14]} Be7 {[%emt 0:01:58]} 4. d4 {[%emt 0:01:45]} exd4 {[%emt 0:04:33]} 5. Nxd4 {[%emt 0:00:17]} Nf6 {[%emt 0:00:26]} 6. Bb5+ {[%emt 0:03:29]} c6 {[%emt 0:01:22]} 7. Ba4 {[%emt 0:00:28]} b5 {[%emt 0:03:43]} 8. Bb3 {[%emt 0:05:00]} b4 {[%emt 0:04:29]} 9. Nb1 {[%emt 0:06:49]} Nxe4 {[%emt 0:01:01]} 10. Qf3 {[%emt 0:02:47]} Nf6 {[%emt 0:02:24]} 11. Ba4 {[%emt 0:04:15]} Bd7 {[%emt 0:03:39]} 12. Nxc6 {[%emt 0:02:47]} Nxc6 {[%emt 0:04:43]} 13. Bxc6 {[%emt 0:00:14]} Rc8 {[%emt 0:03:16]} 14. Bxd7+ {[%emt 0:01:41]} Qxd7 {[%emt 0:00:32]} 15. c3 {[%emt 0:03:26]} Qe6+ {[%emt 0:02:30]} 16. Be3 {[%emt 0:01:37]} Nd5 {[%emt 0:02:56]} 17. O-O {[%emt 0:02:20]} bxc3 {[%emt 0:03:05]} 18. Nxc3 {[%emt 0:02:42]} Nxc3 {[%emt 0:03:38]} 19. bxc3 {[%emt 0:00:30]} Rxc3 {[%emt 0:01:43]} 20. Qa8+ {[%emt 0:00:45]} Rc8 {[%emt 0:01:37]} 21. Qxa7 {[%emt 0:01:57]} O-O {[%emt 0:02:32]} 22. Rfe1 {[%emt 0:00:51]} Ra8 {[%emt 0:05:47]} 23. Qb7 {[%emt 0:00:25]} Bf6 {[%emt 0:03:08]} 24. Bd4 {[%emt 0:00:17]} Qf5 25. Bxf6 Qxf6 1/2-1/2